lending/lending_fUSD_20241025
["ID","MTS","AMOUNT","RATE_DAILY","PERIOD"]
[340832373,1729895444828,-171.11346649,0.00060998,120]
[340832374,1729895444837,-500.0,0.00060998,120]
[340832375,1729895444847,-500.0,0.00060998,7]
[340832376,1729895444857,-500.0,0.00060998,120]
[340832377,1729895444867,-500.0,0.00060998,120]
[340832378,1729895444877,-500.0,0.00060998,120]
[340832379,1729895444887,-500.0,0.00060998,120]
[340832380,1729895444896,-500.0,0.00060998,120]
[340832381,1729895444905,-500.0,0.00060998,120]
[340832382,1729895444915,-500.0,0.00060998,120]
[340832383,1729895444924,-866.98,0.00060998,120]
[340832384,1729895444934,-500.0,0.00060998,120]
[340832385,1729895444944,-500.0,0.00060998,120]
[340832386,1729895444954,-500.0,0.00060998,120]
[340832387,1729895444963,-496.91018,0.00060998,120]
[340832388,1729895444972,-166.97321568,0.00060999,30]
[340832389,1729895444983,-622.08668796,0.00060999,2]
[340832390,1729895444992,-1000.0,0.00060999,2]
[340832391,1729895445002,-1000.0,0.00060999,2]
[340832392,1729895445012,-1000.0,0.00060999,2]
[340832393,1729895445022,-1000.0,0.00060999,2]
[340832394,1729895445032,-1000.0,0.00060999,2]
[340832395,1729895445041,-1000.0,0.00060999,2]
[340832396,1729895445051,-1000.0,0.00060999,2]
[340832397,1729895445060,-1000.0,0.00060999,2]
[340832398,1729895445071,-1000.0,0.00060999,2]
[340832399,1729895445082,-1000.0,0.00060999,2]
[340832400,1729895445092,-1000.0,0.00060999,2]
[340832401,1729895445103,-1000.0,0.00060999,2]
[340832402,1729895445113,-1000.0,0.00060999,2]
[340832403,1729895445124,-1000.0,0.00060999,2]
[340832404,1729895445134,-1000.0,0.00060999,2]
[340832405,1729895445145,-1000.0,0.00060999,2]
[340832406,1729895445155,-1000.0,0.00060999,2]
[340832407,1729895445165,-1000.0,0.00060999,2]
[340832408,1729895445175,-1000.0,0.00060999,2]
[340832409,1729895445185,-1000.0,0.00060999,2]
[340832410,1729895445195,-1000.0,0.00060999,2]
[340832411,1729895445206,-1000.0,0.00060999,2]
[340832412,1729895445216,-1000.0,0.00060999,2]
[340832413,1729895445226,-1000.0,0.00060999,2]
[340832414,1729895445237,-1000.0,0.00060999,2]
[340832415,1729895445247,-1000.0,0.00060999,2]
[340832416,1729895445259,-1000.0,0.00060999,2]
[340832417,1729895445269,-1000.0,0.00060999,2]
[340832418,1729895445279,-957.83501541,0.00060999,2]
[340832419,1729895445290,-11431.68135829,0.00060999,30]
[340832420,1729895445301,-357.44234493,0.00060999,120]
[340832421,1729895445311,-151.0,0.00060999,120]
[340832422,1729895445322,-151.0,0.00060999,120]
[340832423,1729895445333,-151.0,0.00060999,120]
[340832424,1729895445344,-152.040197,0.00060999,120]
[340832425,1729895445355,-500.0,0.00060999,120]
[340832426,1729895445364,-500.0,0.00060999,120]
[340832427,1729895445375,-500.0,0.00060999,120]
[340832428,1729895445386,-500.0,0.00060999,120]
[340832429,1729895445397,-500.0,0.00060999,120]
[340832430,1729895445407,-500.0,0.00060999,120]
[340832431,1729895445417,-500.0,0.00060999,120]
[340832432,1729895445427,-500.0,0.00060999,120]
[340832433,1729895445437,-151.0,0.00060999,120]
[340832434,1729895445447,-151.0,0.00060999,120]
[340832435,1729895445457,-151.0,0.00060999,120]
[340832436,1729895445467,-500.0,0.00060999,120]
[340832437,1729895445477,-500.0,0.00060999,120]
[340832438,1729895445488,-500.0,0.00060999,120]
[340832439,1729895445498,-500.0,0.00060999,120]
[340832440,1729895445508,-500.0,0.00060999,120]
[340832441,1729895445518,-500.0,0.00060999,120]
[340832442,1729895445530,-224.88,0.00060999,120]
[340832443,1729895445541,-210.518869,0.00060999,120]
[340832444,1729895445551,-500.0,0.00060999,120]
[340832445,1729895445562,-500.0,0.00060999,120]
[340832446,1729895445573,-500.0,0.00060999,120]
[340832447,1729895445583,-500.0,0.00060999,120]
[340832448,1729895445593,-500.0,0.00060999,120]
[340832449,1729895445603,-500.0,0.00060999,120]
[340832450,1729895445613,-500.0,0.00060999,120]
[340832451,1729895445624,-500.0,0.00060999,120]
[340832452,1729895445635,-597.55,0.00060999,120]
[340832453,1729895445645,-151.0,0.00060999,120]
[340832454,1729895445655,-175.446714,0.00060999,120]
[340832455,1729895445665,-151.0,0.00060999,120]
[340832456,1729895445674,-263.829835,0.00060999,120]
[340832457,1729895445685,-151.0,0.00060999,120]
[340832458,1729895445695,-153.074854,0.00060999,120]
[340832459,1729895445704,-151.0,0.00060999,120]
[340832460,1729895445714,-154.027241,0.00060999,120]
[340832461,1729895445723,-151.0,0.00060999,120]
[340832462,1729895445733,-151.0,0.00060999,120]
[340832463,1729895445743,-151.0,0.00060999,120]
[340832464,1729895445753,-151.0,0.00060999,120]
[340832465,1729895445763,-151.0,0.00060999,120]
[340832466,1729895445774,-257.473111,0.00060999,120]
[340832467,1729895445784,-151.0,0.00060999,120]
[340832468,1729895445795,-151.0,0.00060999,120]
[340832469,1729895445805,-151.0,0.00060999,120]
[340832470,1729895445815,-151.0,0.00060999,120]
[340832471,1729895445825,-151.0,0.00060999,120]
[340832472,1729895445835,-151.0,0.00060999,120]
[340832473,1729895445845,-151.0,0.00060999,120]
[340832474,1729895445856,-151.0,0.00060999,120]
[340832475,1729895445867,-205.507858,0.00060999,120]
[340832476,1729895445878,-205.507858,0.00060999,120]
[340832477,1729895445888,-205.507858,0.00060999,120]
[340832478,1729895445898,-205.507858,0.00060999,120]
[340832479,1729895445908,-151.0,0.00060999,120]
[340832480,1729895445918,-151.0,0.00060999,120]
[340832481,1729895445928,-151.0,0.00060999,120]
[340832482,1729895445938,-199.382848,0.00060999,120]
[340832483,1729895445947,-205.507858,0.00060999,120]
[340832484,1729895445958,-205.507858,0.00060999,120]
[340832485,1729895445967,-205.507858,0.00060999,120]
[340832486,1729895445977,-205.507858,0.00060999,120]
[340832487,1729895445986,-151.0,0.00060999,120]
[340832488,1729895445996,-151.0,0.00060999,120]
[340832489,1729895446006,-151.0,0.00060999,120]
[340832490,1729895446015,-151.0,0.00060999,120]
[340832491,1729895446024,-151.0,0.00060999,120]
[340832492,1729895446034,-151.0,0.00060999,120]
[340832493,1729895446044,-151.0,0.00060999,120]
[340832494,1729895446053,-151.0,0.00060999,120]
[340832495,1729895446062,-151.0,0.00060999,120]
[340832496,1729895446072,-151.0,0.00060999,120]
[340832497,1729895446081,-209.610444,0.00060999,120]
[340832498,1729895446090,-151.0,0.00060999,120]
[340832499,1729895446100,-151.0,0.00060999,120]
[340832500,1729895446109,-151.0,0.00060999,120]
[340832501,1729895446119,-151.0,0.00060999,120]
[340832502,1729895446128,-151.0,0.00060999,120]
[340832503,1729895446137,-151.0,0.00060999,120]
[340832504,1729895446147,-151.0,0.00060999,120]
[340832505,1729895446156,-151.0,0.00060999,120]
[340832506,1729895446165,-151.0,0.00060999,120]
[340832507,1729895446175,-263.447741,0.00060999,120]
[340832508,1729895446185,-151.0,0.00060999,120]
[340832510,1729895446195,-151.0,0.00060999,120]
[340832511,1729895446204,-151.0,0.00060999,120]
[340832512,1729895446214,-151.0,0.00060999,120]
[340832513,1729895446223,-500.0,0.00060999,120]
[340832514,1729895446233,-483.98982999,0.00060999,120]
[340832515,1729895446243,-151.0,0.00060999,120]
[340832516,1729895446257,-151.0,0.00060999,120]
[340832517,1729895446267,-151.0,0.00060999,120]
[340832518,1729895446276,-151.0,0.00060999,120]
[340832519,1729895446286,-151.0,0.00060999,120]
[340832520,1729895446297,-151.0,0.00060999,120]
[340832521,1729895446307,-151.0,0.00060999,120]
[340832522,1729895446317,-151.0,0.00060999,120]
[340832523,1729895446327,-151.0,0.00060999,120]
[340832524,1729895446336,-151.0,0.00060999,120]
[340832525,1729895446346,-151.0,0.00060999,120]
[340832526,1729895446356,-151.0,0.00060999,120]
[340832527,1729895446365,-156.264097,0.00060999,120]
[340832528,1729895446375,-683.533665,0.00060999,120]
[340832529,1729895446384,-683.533665,0.00060999,120]
[340832530,1729895446393,-151.0,0.00060999,30]
[340832531,1729895446403,-683.533665,0.00060999,120]
[340832532,1729895446413,-683.533665,0.00060999,120]
[340832533,1729895446422,-683.533665,0.00060999,120]
[340832534,1729895446432,-683.533665,0.00060999,120]
[340832535,1729895446442,-683.533665,0.00060999,120]
[340832536,1729895446451,-683.533665,0.00060999,120]
[340832537,1729895446460,-151.0,0.00060999,120]
[340832538,1729895446469,-151.0,0.00060999,120]
[340832539,1729895446479,-151.0,0.00060999,120]
[340832540,1729895446488,-188.14368,0.00060999,120]
[340832541,1729895446498,-170.082598,0.00060999,120]
[340832542,1729895446507,-170.082598,0.00060999,120]
[340832543,1729895446516,-170.082598,0.00060999,120]
[340832544,1729895446526,-170.082598,0.00060999,120]
[340832545,1729895446535,-170.082598,0.00060999,120]
[340832546,1729895446545,-151.0,0.00060999,120]
[340832547,1729895446555,-170.082598,0.00060999,120]
[340832548,1729895446564,-151.0,0.00060999,120]
[340832549,1729895446573,-170.082598,0.00060999,120]
[340832550,1729895446583,-151.0,0.00060999,120]
[340832551,1729895446592,-170.082598,0.00060999,120]
[340832552,1729895446601,-151.0,0.00060999,120]
[340832553,1729895446611,-182.471336,0.00060999,120]
[340832554,1729895446620,-151.0,0.00060999,120]
[340832555,1729895446630,-153.158662,0.00060999,120]
[340832556,1729895446639,-151.0,0.00060999,120]
[340832557,1729895446648,-151.0,0.00060999,120]
[340832558,1729895446657,-151.0,0.00060999,120]
[340832559,1729895446667,-151.0,0.00060999,120]
[340832560,1729895446676,-151.0,0.00060999,120]
[340832561,1729895446685,-151.0,0.00060999,120]
[340832562,1729895446694,-151.0,0.00060999,120]
[340832563,1729895446704,-151.0,0.00060999,120]
[340832564,1729895446713,-151.0,0.00060999,120]
[340832565,1729895446723,-500.0,0.00060999,120]
[340832566,1729895446732,-500.0,0.00060999,120]
[340832567,1729895446741,-500.0,0.00060999,120]
[340832568,1729895446751,-500.0,0.00060999,120]
[340832569,1729895446761,-500.0,0.00060999,120]
[340832570,1729895446770,-540.68754198,0.00060999,120]
[340832571,1729895446779,-244.610808,0.00060999,120]
[340832572,1729895446789,-192.29426484,0.00060999,120]
[340832573,1729895446798,-500.0,0.00060999,120]
[340832574,1729895446807,-500.0,0.00060999,120]
[340832575,1729895446817,-500.0,0.00060999,55]
[340832576,1729895446826,-500.0,0.00060999,55]
[340832577,1729895446835,-500.0,0.00060999,55]
[340832578,1729895446845,-500.0,0.00060999,55]
[340832579,1729895446854,-500.0,0.00060999,55]
[340832580,1729895446863,-500.0,0.00060999,55]
[340832581,1729895446872,-500.0,0.00060999,55]
[340832582,1729895446882,-571.84,0.00060999,55]
[340832583,1729895446892,-500.0,0.00060999,120]
[340832584,1729895446902,-500.0,0.00060999,14]
[340832585,1729895446996,-679.15,0.00060999,120]
[340832586,1729895447005,-679.15,0.00060999,120]
[340832587,1729895447015,-679.15,0.00060999,120]
[340832588,1729895447023,-679.15,0.00060999,120]
[340832589,1729895447032,-679.15,0.00060999,120]
[340832590,1729895447041,-679.15,0.00060999,120]
[340832591,1729895447050,-679.15,0.00060999,120]
[340832592,1729895447059,-679.15,0.00060999,120]
[340832593,1729895447068,-679.15,0.00060999,120]
[340832594,1729895447078,-151.0,0.00060999,120]
[340832595,1729895447090,-6492.83,0.00060999,120]
[340832596,1729895447099,-6492.83,0.00060999,120]
[340832597,1729895447108,-6492.83,0.00060999,120]
[340832598,1729895447118,-6492.83,0.00060999,120]
[340832599,1729895447127,-6492.83,0.00060999,120]
[340832600,1729895447136,-6492.83,0.00060999,120]
[340832601,1729895447146,-6492.83,0.00060999,120]
[340832602,1729895447155,-6492.83,0.00060999,120]
[340832603,1729895447164,-6492.83,0.00060999,120]
[340832604,1729895447173,-500.0,0.00060999,120]
[340832605,1729895447183,-500.0,0.00060999,120]
[340832606,1729895447191,-500.0,0.00060999,120]
[340832607,1729895447201,-500.0,0.00060999,120]
[340832608,1729895447210,-576.87,0.00060999,120]
[340832609,1729895447219,-500.0,0.00060999,120]
[340832610,1729895447228,-500.0,0.00060999,120]
[340832611,1729895447237,-500.0,0.00060999,120]
[340832612,1729895447247,-222.88040539,0.00060999,120]
[340832613,1729895447256,-200.002281,0.00060999,120]
[340832614,1729895447265,-216.8376,0.00060999,120]
[340832615,1729895447274,-200.002281,0.00060999,120]
[340832616,1729895447283,-200.002281,0.00060999,120]
[340832617,1729895447292,-216.8376,0.00060999,120]
[340832618,1729895447301,-216.8376,0.00060999,120]
[340832619,1729895447310,-518.02,0.00060999,120]
[340832620,1729895447320,-200.002281,0.00060999,120]
[340832621,1729895447332,-200.002281,0.00060999,120]
[340832622,1729895447341,-200.002281,0.00060999,120]
[340832623,1729895447350,-216.8376,0.00060999,120]
[340832624,1729895447359,-216.8376,0.00060999,120]
[340832625,1729895447369,-500.0,0.00060999,120]
[340832626,1729895447378,-216.8376,0.00060999,120]
[340832627,1729895447388,-532.75,0.00060999,120]
[340832628,1729895447397,-151.0,0.00060999,120]
[340832629,1729895447406,-151.0,0.00060999,120]
[340832630,1729895447416,-151.0,0.00060999,120]
[340832631,1729895447425,-500.0,0.00060999,120]
[340832632,1729895447434,-562.91,0.00060999,120]
[340832633,1729895447443,-500.0,0.00060999,120]
[340832634,1729895447453,-235.45851387,0.00060999,120]
[340832635,1729895447462,-262.955558,0.00060999,120]
[340832636,1729895447471,-262.955558,0.00060999,120]
[340832637,1729895447481,-500.0,0.00060999,120]
[340832638,1729895447490,-262.955558,0.00060999,120]
[340832639,1729895447499,-500.0,0.00060999,120]
[340832640,1729895447508,-500.0,0.00060999,120]
[340832641,1729895447518,-500.0,0.00060999,120]
[340832642,1729895447527,-500.0,0.00060999,120]
[340832643,1729895447536,-500.0,0.00060999,120]
[340832644,1729895447545,-500.0,0.00060999,120]
[340832645,1729895447554,-500.0,0.00060999,120]
[340832646,1729895447564,-500.0,0.00060999,120]
[340832647,1729895447573,-500.0,0.00060999,120]
[340832648,1729895447583,-500.0,0.00060999,120]
[340832649,1729895447592,-500.0,0.00060999,120]
[340832650,1729895447601,-500.0,0.00060999,120]
[340832651,1729895447610,-262.955558,0.00060999,120]
[340832652,1729895447619,-500.0,0.00060999,120]
[340832653,1729895447628,-262.955558,0.00060999,120]
[340832654,1729895447637,-500.0,0.00060999,120]
[340832655,1729895447647,-262.955558,0.00060999,120]
[340832656,1729895447656,-500.0,0.00060999,120]
[340832657,1729895447665,-500.0,0.00060999,120]
[340832658,1729895447674,-500.0,0.00060999,120]
[340832659,1729895447683,-500.0,0.00060999,120]
[340832660,1729895447692,-204.41325327,0.00060999,120]
[340832661,1729895447701,-500.0,0.00060999,21]
[340832662,1729895447710,-500.0,0.00060999,21]
[340832663,1729895447719,-500.0,0.00060999,21]
[340832664,1729895447728,-500.0,0.00060999,21]
[340832665,1729895447737,-500.0,0.00060999,120]
[340832666,1729895447746,-151.0,0.00060999,120]
[340832667,1729895447755,-151.0,0.00060999,120]
[340832668,1729895447764,-151.0,0.00060999,120]
[340832669,1729895447773,-151.0,0.00060999,120]
[340832670,1729895447782,-500.0,0.00060999,120]
[340832671,1729895447791,-151.0,0.00060999,120]
[340832672,1729895447800,-151.0,0.00060999,120]
[340832673,1729895447808,-500.0,0.00060999,120]
[340832674,1729895447818,-151.0,0.00060999,120]
[340832675,1729895447827,-151.0,0.00060999,120]
[340832676,1729895447837,-500.0,0.00060999,120]
[340832677,1729895447846,-500.0,0.00060999,120]
[340832678,1729895447855,-500.0,0.00060999,120]
[340832679,1729895447864,-500.0,0.00060999,120]
[340832680,1729895447874,-500.0,0.00060999,120]
[340832681,1729895447883,-500.0,0.00060999,120]
[340832682,1729895447892,-265.84705,0.00060999,120]
[340832683,1729895447901,-1061.87,0.00060999,120]
[340832684,1729895447910,-1061.87,0.00060999,120]
[340832685,1729895447919,-1061.87,0.00060999,120]
[340832686,1729895447928,-1061.87,0.00060999,120]
[340832687,1729895447937,-1061.87,0.00060999,120]
[340832688,1729895447946,-1061.87,0.00060999,120]
[340832689,1729895447955,-1061.87,0.00060999,120]
[340832690,1729895447964,-1061.87,0.00060999,120]
[340832691,1729895447972,-1061.87,0.00060999,120]
[340832692,1729895447982,-500.0,0.00060999,120]
[340832693,1729895447991,-242.87269637,0.00060999,120]
[340832694,1729895448000,-500.0,0.00060999,4]
[340832695,1729895448009,-500.0,0.00060999,4]
[340832696,1729895448018,-500.0,0.00060999,4]
[340832697,1729895448028,-500.0,0.00060999,4]
[340832698,1729895448038,-500.0,0.00060999,4]
[340832699,1729895448047,-168.1831,0.00060999,4]
[340832700,1729895448057,-500.0,0.00060999,7]
[340832701,1729895448067,-500.0,0.00060999,7]
[340832702,1729895448077,-500.0,0.00060999,7]
[340832703,1729895448087,-500.0,0.00060999,7]
[340832704,1729895448097,-500.0,0.00060999,120]
[340832705,1729895448106,-500.0,0.00060999,7]
[340832706,1729895448116,-500.0,0.00060999,120]
[340832707,1729895448126,-500.0,0.00060999,7]
[340832708,1729895448136,-424.45936258,0.00060999,120]
[340832709,1729895448145,-500.0,0.00060999,7]
[340832710,1729895448154,-500.0,0.00060999,7]
[340832711,1729895448163,-309.12783971,0.00060999,7]
[340832712,1729895448172,-500.0,0.00060999,120]
[340832713,1729895448181,-500.0,0.00060999,120]
[340832714,1729895448191,-500.0,0.00060999,120]
[340832715,1729895448200,-452.16106077,0.00060999,120]
[340832716,1729895448209,-500.0,0.00060999,120]
[340832717,1729895448218,-500.0,0.00060999,120]
[340832718,1729895448228,-500.0,0.00060999,120]
[340832719,1729895448236,-500.0,0.00060999,120]
[340832720,1729895448246,-500.0,0.00060999,120]
[340832721,1729895448261,-500.0,0.00060999,120]
[340832722,1729895448270,-500.0,0.00060999,120]
[340832723,1729895448279,-500.0,0.00060999,120]
[340832724,1729895448288,-500.0,0.00060999,120]
[340832725,1729895448298,-500.0,0.00060999,120]
[340832726,1729895448307,-519.78911222,0.00060999,120]
[340832727,1729895448317,-500.0,0.00060999,120]
[340832728,1729895448327,-500.0,0.00060999,120]
[340832729,1729895448336,-500.0,0.00060999,120]
[340832730,1729895448346,-325.62808731,0.00060999,120]
[340832731,1729895448754,-488.92922997,0.00059452,120]
[340832732,1729895448807,-11.07077003,0.00059452,120]
[340832733,1729895448816,-500.0,0.00059452,120]
[340832734,1729895448827,-296.2059034,0.00059452,2]
[340832735,1729895448837,-228.84464332,0.00059452,120]
[340832736,1729895448859,-153.2559538,0.00059452,120]
[340832737,1729895448868,-183.1540462,0.00059609,120]
[340832738,1729896353200,-4293.30112849,0.000525,120]
[340832739,1729896436125,-621.91778593,0.00054694,2]
[340832740,1729896436146,-121.76497765,0.00054794,120]
[340832741,1729896436173,-386.32502235,0.00054794,120]
[340832742,1729896436192,-500.0,0.00054795,120]
[340832743,1729896436212,-208.0,0.0005494,30]
[340832744,1729896436231,-1012.1800785,0.00055,120]
[340832745,1729896436251,-116.25916632,0.00055,2]
[340832746,1729896452091,-289.31083368,0.00055,2]
[340832747,1729896452110,-261.74,0.00055,2]
[340832748,1729896452129,-150.99,0.00055,2]
[340832749,1729896452149,-1155.89,0.0005585,2]
[340832750,1729896452168,-3000.0,0.000564,90]
[340832751,1729896452187,-176.392,0.000564,109]
[340832752,1729896452206,-26.31953123,0.000564,2]
[340832753,1729896482602,150.0,0.00017433,2]
[340832763,1729896632002,-1098.09,0.00055182,2]
[340832764,1729896632012,-2232.94179395,0.000558,120]
[340832765,1729896632028,-4383.82569339,0.000558,120]
[340832766,1729896632063,-612.23251266,0.000558,120]
[340832767,1729896632073,-1684.57014072,0.000564,2]
[340832768,1729896632084,-3753.76120749,0.000564,2]
[340832769,1729896632095,-4535.33912056,0.000564,2]
[340832770,1729896632105,-208.0,0.0005647,30]
[340832771,1729896632114,-1202.55,0.000568,7]
[340832772,1729896632123,-4828.56063873,0.00056852,2]
[340832773,1729896632171,-520.63,0.00056852,2]
[340832774,1729896632200,-9088.72343376,0.00056852,2]
[340832775,1729896632210,-1859.86,0.00056852,30]
[340832776,1729896632219,-159.98177466,0.00056936,120]
[340832846,1729896638049,-258.43159717,0.00056936,120]
[340832847,1729896638059,-157.0,0.00056953,2]
[340832849,1729896638067,-188.59,0.00057005,120]
[340832850,1729896638076,-251.02,0.0005701,30]
[340832851,1729896638085,-3975.01302283,0.0005702,2]
[340832854,1729896638243,-477.03345881,0.0005702,2]
[340832855,1729896638256,-15513.02351836,0.0005702,2]
[340832856,1729896638268,-23900.0,0.00057036,2]
[340832857,1729896638277,-1000.0,0.00057075,30]
[340832858,1729896638286,-250.0,0.00057086,120]
[340832859,1729896638295,-2367.86,0.00057089,30]
[340832860,1729896638304,-4932.64,0.00057223,2]
[340832861,1729896638313,-1553.08,0.00057231,2]
[340832862,1729896638323,-3231.42,0.0005726,120]
[340832863,1729896638331,-3481.98,0.00057268,2]
[340832864,1729896638340,-781.9,0.00057289,2]
[340832865,1729896638349,-250.0,0.00057316,120]
[340832866,1729896638359,-150.12,0.00057356,120]
[340832867,1729896638368,-1000.0,0.00057441,7]
[340832868,1729896638377,-1098.09,0.00057446,2]
[340832869,1729896638386,-251.02,0.00057539,30]
[340832870,1729896638395,-392.13007046,0.00057548,2]
[340832871,1729896638404,-56881.29,0.00057549,2]
[340832872,1729896638413,-11229.93,0.00057608,2]
[340832873,1729896638422,-150.0,0.00057609,2]
[340832874,1729896638431,-160.0,0.0005763,120]
[340832875,1729896638440,-3645.80838606,0.000579,15]
[340832876,1729896638449,-208.0,0.00058,30]
[340832877,1729896638458,-418.41337181,0.00058109,120]
[340832878,1729896638467,-157.76,0.00058134,2]
[340832879,1729896638476,-831.26,0.00058139,2]
[340832880,1729896638485,-173.83,0.00058516,91]
[340832881,1729896638494,-904.0,0.0005867,120]
[340832882,1729896638621,-3645.80838599,0.00058678,15]
[340832884,1729896638632,-162.33,0.00058681,2]
[340832886,1729896638641,-603.17,0.00058736,2]
[340832888,1729896638651,-167.63,0.00058871,2]
[340832890,1729896638660,-169.93,0.00059042,120]
[340832892,1729896638672,-3000.0,0.000592,90]
[340832894,1729896638682,-418.41337181,0.00059282,120]
[340832896,1729896638691,-216.60606704,0.00059292,31]
[340832898,1729896638701,-165.1422359,0.00059302,76]
[340832900,1729896638710,-156.0,0.00059352,2]
[340832902,1729896638719,-1020.36112208,0.00059352,30]
[340832904,1729896638728,-1028.19561048,0.00059352,2]
[340832906,1729896638737,-425.03194276,0.00059352,2]
[340832908,1729896638746,-251.02,0.00059372,30]
[340832909,1729896638756,-500.0,0.00059381,120]
[340832911,1729896638766,-639.68741277,0.00059381,120]
[340832913,1729896638775,-127305.242491,0.00059382,13]
[340832915,1729896638784,-5000.0,0.00059382,120]
[340832917,1729896638794,-5000.0,0.00059382,120]
[340832918,1729896638803,-5000.0,0.00059382,120]
[340832919,1729896638812,-5000.0,0.00059382,120]
[340832920,1729896638821,-5000.0,0.00059382,120]
[340832921,1729896638830,-5000.0,0.00059382,120]
[340832922,1729896638839,-5000.0,0.00059382,120]
[340832923,1729896638849,-5000.0,0.00059382,120]
[340832924,1729896638858,-5000.0,0.00059382,120]
[340832925,1729896638868,-5000.0,0.00059382,120]
[340832926,1729896638877,-5000.0,0.00059382,120]
[340832927,1729896638886,-5000.0,0.00059382,120]
[340832928,1729896638895,-5000.0,0.00059382,120]
[340832929,1729896638905,-5000.0,0.00059382,120]
[340832930,1729896638914,-5000.0,0.00059382,120]
[340832931,1729896638923,-5000.0,0.00059382,120]
[340832932,1729896638936,-5000.0,0.00059382,120]
[340832933,1729896638945,-5000.0,0.00059382,120]
[340832934,1729896638954,-5000.0,0.00059382,120]
[340832935,1729896638963,-5000.0,0.00059382,120]
[340832936,1729896638972,-5000.0,0.00059382,120]
[340832937,1729896638981,-5000.0,0.00059382,120]
[340832938,1729896638990,-5000.0,0.00059382,120]
[340832939,1729896639000,-5000.0,0.00059382,120]
[340832940,1729896639011,-5000.0,0.00059382,120]
[340832941,1729896639024,-5000.0,0.00059382,120]
[340832942,1729896639033,-5000.0,0.00059382,120]
[340832943,1729896639042,-5000.0,0.00059382,120]
[340832944,1729896639051,-5000.0,0.00059382,120]
[340832945,1729896639060,-3396.747295,0.00059382,120]
[340832946,1729896639070,-59908.3494077,0.00059382,13]
[340832947,1729896639079,-3450.52793704,0.00059391,12]
[340832948,1729896639088,-158724.285104,0.00059392,12]
[340832949,1729896639097,-153.98,0.00059392,120]
[340832950,1729896639107,-153.98,0.00059392,120]
[340832951,1729896639116,-154.67394877,0.00059392,7]
[340832952,1729896639125,-250.0,0.00059392,120]
[340832953,1729896639134,-250.0,0.00059392,120]
[340832954,1729896639143,-250.0,0.00059392,120]
[340832955,1729896639152,-250.0,0.00059392,120]
[340832956,1729896639161,-250.0,0.00059392,120]
[340832957,1729896639170,-250.0,0.00059392,120]
[340832958,1729896639179,-250.0,0.00059392,120]
[340832959,1729896639188,-250.0,0.00059392,120]
[340832960,1729896639198,-250.0,0.00059392,120]
[340832961,1729896639207,-250.0,0.00059392,120]
[340832962,1729896639215,-250.0,0.00059392,120]
[340832963,1729896639225,-253.252671,0.00059392,120]
[340832964,1729896639234,-357.44234493,0.00059401,120]
[340832965,1729896639245,-11207.62040367,0.00059401,18]
[340832966,1729896639255,-524.19559182,0.00059401,31]
[340832967,1729896639264,-224.15240807,0.00059401,18]
[340832968,1729896639273,-11160.07883588,0.00059402,60]
[340832969,1729896639283,-70971.25978145,0.00059402,64]
[340832970,1729896639294,-36183.99685355,0.00059402,120]
[340832971,1729896639587,-562.29359518,0.00059402,120]